[Event "10th Iberoamericano-ch 2024"]
[Site "Linares"]
[Date "2024.10.01"]
[Round "9.7"]
[White "Iturrizaga Bonelli, Eduardo"]
[Black "Ladron De Guevara Pinto, Paolo"]
[Result "1-0"]
[Annotator "TA"]
[ECO "D35"]
[WhiteElo "2577"]
[BlackElo "2388"]
[PlyCount "63"]
[EventDate "2024.09.25"]
[EventType "swiss"]
[EventCountry "ESP"]
[SourceTitle "playchess.com"]
[Source "ChessBase"]
[SourceQuality "1"]
[TimeControl "5400+30"]

{[%evp 12,63,21,11,29,21,14,14,12,21,47,31,38,30,36,32,29,24,33,33,40,33,37,30,35,33,39,40,31,32,35,34,56,40,50,46,49,50,47,32,35,42,37,41,44,40,88,90,102,112,331,322,324,322]} 1. c4 {[%emt 0:05:07]} e6 {[%emt 0:00:11]} 2. Nc3 {[%emt 0:00:45]} d5 {[%emt 0:00:12]} 3. d4 {[%emt 0:00:05]} Nf6 {[%emt 0:00:11]} 4. cxd5 {[%emt 0:00:34]} exd5 {[%emt 0:00:07]} 5. Bg5 {[%emt 0:00:05]} Be7 {[%emt 0:00:05]} 6. e3 {[%emt 0:00:20]} h6 {[%emt 0:00:05]} 7. Bh4 {[%emt 0:00:10]} Bg4 {[%emt 0:00:09]} 8. Nge2 {[%emt 0:39:35]} c6 {[%emt 0:06:42]} 9. f3 {[%emt 0:06:16][%cal Oh4f6] [#] aiming for Bxf6!} Bf5 {[%emt 0:01:04] The position is equal.} 10. Bf2 {[%emt 0:00:06]} h5 {[%emt 0:10:44]} 11. Ng3 {[%emt 0:10:15]} Bg6 {[%emt 0:06:22]} 12. Bd3 {[%emt 0:00:06]} Bxd3 {[%emt 0:00:05]} 13. Qxd3 {[%emt 0:00:03]} g6 {[%emt 0:00:04] Repels Nf5} 14. h3 {[%emt 0:01:31]} Nbd7 {[%emt 0:04:29][%cal Bb8d7,Bd7f8,Bf8e6][%mdl 32]} 15. O-O Nf8 {[%emt 0:12:18]} 16. e4 {[%emt 0:06:40]} h4 {[%emt 0:00:57]} 17. Nge2 {[%emt 0:01:06]} Ne6 {[%emt 0:00:04]} 18. Rfe1 {[%emt 0:06:22]} Qd7 {[%emt 0:02:02]} 19. Qe3 {[%emt 0:14:28]} g5 {[%emt 0:33:51] Dodges Nf4} 20. exd5 {[%emt 0:01:19]} Nxd5 {[%emt 0:00:22]} 21. Nxd5 {[%emt 0:00:08]} Qxd5 {[%emt 0:00:19]} 22. Nc3 {[%emt 0:00:13]} Qf5 {[%emt 0:00:04]} 23. Rad1 $36 {[%emt 0:00:42][%mdl 2048] [#] Hoping for d5. White fights for an advantage.} O-O $1 {[%emt 0:06:27]} 24. d5 {[%emt 0:03:09]} Bc5 {[%emt 0:02:33]} 25. Qd2 {[%emt 0:00:30]} (25. Qc1 {with more complications.} Bxf2+ 26. Kxf2 Nf4 27. dxc6 Qc5+ 28. Qe3) 25... Bxf2+ {[%emt 0:01:38]} 26. Qxf2 {[%emt 0:00:00]} Nf4 27. dxc6 bxc6 {[%emt 0:00:36]} ({But not} 27... Nd3 $2 28. Rxd3 Qxd3 29. cxb7 $18) 28. Ne4 {[%emt 0:00:36]} a5 {[%emt 0:01:59]} (28... Rfd8 $14 {is superior.}) 29. Qc2 $16 {[%emt 0:02:11][%cal Od1d6]} Rfd8 {[%emt 0:03:41]} 30. Qxc6 {[%emt 0:00:27]} Rac8 {[%emt 0:00:53]} (30... Ne6 $16 31. Kh1 Rab8) 31. Rxd8+ $18 {[%emt 0:00:24]} Rxd8 {[%emt 0:00:04]} 32. Qh6 {[%emt 0:00:12] Weighted Error Value: White=0.03 (flawless) /Black=0.22 (precise) .  Loses game:     	---       	Black=1      Mistake:       	---       	Black=1      Inaccurate:     	---       	Black=1      OK:         	White=14    	Black=10     Best:        	White=1     	Black=2      Strong:       	---       	Black=1} 1-0

[Event "10th Iberoamericano-ch 2024"]
[Site "Linares"]
[Date "2024.10.01"]
[Round "9.8"]
[White "Gines Esteo, Pedro Antonio"]
[Black "Moral Garcia, Serafin"]
[Result "1-0"]
[Annotator "RC"]
[ECO "A35"]
[WhiteElo "2477"]
[BlackElo "2295"]
[PlyCount "149"]
[EventDate "2024.09.25"]
[EventType "swiss"]
[EventCountry "ESP"]
[SourceTitle "playchess.com"]
[Source "ChessBase"]
[SourceQuality "1"]
[TimeControl "5400+30"]

1. Nf3 {[%emt 0:11:07]} Nf6 {[%emt 0:00:12]} 2. c4 {[%emt 0:00:53]} c5 {[%emt 0:00:19]} 3. Nc3 {[%emt 0:00:50]} Nc6 {[%emt 0:00:31]} 4. e3 {[%emt 0:01:48]} e5 {[%emt 0:00:48]} 5. d4 {[%emt 0:00:25]} cxd4 {[%emt 0:02:18]} 6. exd4 {[%emt 0:03:19]} e4 {[%emt 0:00:25]} 7. Ne5 {[%emt 0:00:04]} Bb4 {[%emt 0:03:01]} 8. a3 {[%emt 0:13:19]} Bxc3+ {[%emt 0:01:56]} 9. bxc3 {[%emt 0:00:03]} O-O {[%emt 0:02:24]} 10. Be2 {[%emt 0:00:43]} d6 {[%emt 0:07:34]} 11. Nxc6 {[%emt 0:00:22]} bxc6 {[%emt 0:00:08]} 12. Bg5 {[%emt 0:09:11]} Qa5 {[%emt 0:05:48]} 13. Qc1 {[%emt 0:01:20]} h6 {[%emt 0:09:15]} 14. Bxf6 {[%emt 0:09:18]} gxf6 {[%emt 0:00:25]} 15. h4 {[%emt 0:13:52]} Rb8 {[%emt 0:08:01]} 16. O-O {[%emt 0:12:03]} Kg7 {[%emt 0:06:45]} 17. Qe3 {[%emt 0:00:29]} Rb3 {[%emt 0:05:49]} 18. Qxe4 {[%emt 0:13:53]} Qxc3 {[%emt 0:04:29]} 19. Rfc1 {[%emt 0:04:10]} Qd2 {[%emt 0:01:21]} 20. Rd1 {[%emt 0:01:29]} f5 {[%emt 0:05:16]} 21. Qe7 {[%emt 0:01:51]} Qf4 {[%emt 0:01:46]} 22. Ra2 {[%emt 0:00:29]} Rb7 {[%emt 0:01:42]} 23. Qe3 {[%emt 0:00:15]} Qxh4 {[%emt 0:01:45]} 24. Bf3 {[%emt 0:00:44]} Re7 {[%emt 0:01:16]} 25. Qc3 {[%emt 0:00:16]} Qf6 {[%emt 0:03:06]} 26. Bxc6 {[%emt 0:00:10]} Rc7 {[%emt 0:00:57]} 27. Bd5 {[%emt 0:01:05]} Kh7 {[%emt 0:01:54]} 28. Qd3 {[%emt 0:00:30]} Be6 {[%emt 0:00:27]} 29. Bxe6 {[%emt 0:00:29]} fxe6 {[%emt 0:00:27]} 30. Re2 {[%emt 0:00:11]} e5 {[%emt 0:04:26]} 31. dxe5 {[%emt 0:00:48]} dxe5 {[%emt 0:00:01]} 32. Qd5 {[%emt 0:00:32]} e4 {[%emt 0:01:09]} 33. c5 {[%emt 0:00:22]} Re8 {[%emt 0:03:17]} 34. Rc2 {[%emt 0:00:33]} Qe5 {[%emt 0:01:05]} 35. Qxe5 {[%emt 0:00:35]} Rxe5 {[%emt 0:00:01]} 36. c6 {[%emt 0:00:07]} Kg6 {[%emt 0:03:12]} 37. Rd6+ {[%emt 0:00:47]} Kg5 {[%emt 0:00:00]} 38. Rc4 {[%emt 0:00:28]} Rb5 {[%emt 0:02:19]} 39. Kf1 {[%emt 0:00:38]} h5 {[%emt 0:05:01]} 40. a4 {[%emt 0:00:26]} Rb1+ {[%emt 0:01:25]} 41. Ke2 {[%emt 0:00:02]} Rb2+ {[%emt 0:02:13]} 42. Ke1 {[%emt 0:00:57]} Rb1+ {[%emt 0:01:25]} 43. Kd2 {[%emt 0:00:07]} Rb6 {[%emt 0:01:16]} 44. Rc5 {[%emt 0:00:39]} Kg4 {[%emt 0:02:12]} 45. Rg6+ {[%emt 0:00:45]} Kf4 {[%emt 0:00:03]} 46. Rf6 {[%emt 0:00:33]} Kg4 {[%emt 0:00:29]} 47. Rg6+ {[%emt 0:00:08]} Kf4 {[%emt 0:00:04]} 48. Rf6 {[%emt 0:00:02]} Kg4 {[%emt 0:00:39]} 49. Rfxf5 {[%emt 0:01:07]} Rbxc6 {[%emt 0:00:23]} 50. Rg5+ {[%emt 0:00:05]} Kh4 {[%emt 0:00:05]} 51. Rxh5+ {[%emt 0:00:07]} Kg4 {[%emt 0:00:01]} 52. Rhg5+ {[%emt 0:00:50]} Kh4 {[%emt 0:00:01]} 53. Rxc6 Rxc6 54. Re5 {[%emt 0:00:38]} Rc4 {[%emt 0:00:59]} 55. Ke3 {[%emt 0:00:31]} Rc3+ {[%emt 0:00:29]} 56. Kxe4 {[%emt 0:00:44]} Rc2 {[%emt 0:00:03]} 57. Kf3 {[%emt 0:00:30]} Rc3+ {[%emt 0:00:11]} 58. Re3 {[%emt 0:00:41]} Rc2 {[%emt 0:00:14]} 59. Re4+ {[%emt 0:00:36]} Kg5 {[%emt 0:00:01]} 60. Re5+ {[%emt 0:00:06]} Kf6 {[%emt 0:00:17]} 61. Ra5 {[%emt 0:00:09]} Rc7 {[%emt 0:00:36]} 62. g4 {[%emt 0:00:14]} Kg6 {[%emt 0:00:06]} 63. Kf4 {[%emt 0:00:14]} Rc4+ {[%emt 0:00:14]} 64. Kg3 {[%emt 0:00:06]} Rc3+ {[%emt 0:00:05]} 65. f3 {[%emt 0:00:05]} Rc7 {[%emt 0:00:03]} 66. Ra6+ {[%emt 0:00:05]} Kg7 {[%emt 0:00:04]} 67. f4 {[%emt 0:00:05]} Rc3+ {[%emt 0:00:08]} 68. Kh4 {[%emt 0:00:06]} Rc7 {[%emt 0:00:04]} 69. Kg5 {[%emt 0:00:11]} Rb7 {[%emt 0:00:06]} 70. f5 {[%emt 0:00:10]} Rc7 {[%emt 0:00:04]} 71. Kh5 {[%emt 0:00:22]} Rb7 {[%emt 0:00:03]} 72. g5 {[%emt 0:00:10]} Rc7 {[%emt 0:00:06]} 73. f6+ {[%emt 0:00:09]} Kh7 {[%emt 0:00:12]} 74. g6+ {[%emt 0:00:07]} Kg8 {[%emt 0:00:01]} 75. Re6 {[%emt 0:00:26]} 1-0

[Event "10th Iberoamericano-ch 2024"]
[Site "Linares"]
[Date "2024.10.01"]
[Round "9.9"]
[White "Mingarro Carceller, Sergi"]
[Black "Salinas Herrera, Pablo"]
[Result "0-1"]
[Annotator "TA"]
[ECO "C54"]
[WhiteElo "2273"]
[BlackElo "2472"]
[PlyCount "54"]
[EventDate "2024.09.25"]
[EventType "swiss"]
[EventCountry "ESP"]
[SourceTitle "playchess.com"]
[Source "ChessBase"]
[SourceQuality "1"]
[TimeControl "5400+30"]

{[%evp 10,54,22,18,12,8,12,9,27,10,21,7,38,31,37,26,33,39,41,33,33,32,33,45,99,12,33,40,44,0,0,-42,-32,-366,-366,-354,-347,-372,-379,-367,-203,-469,-382,-804,-784,-1060,-743]} 1. e4 {[%emt 0:00:05]} e5 {[%emt 0:05:30]} 2. Nf3 {[%emt 0:00:10]} Nc6 {[%emt 0:00:05]} 3. Bc4 {[%emt 0:00:16]} Bc5 {[%emt 0:00:05]} 4. c3 {[%emt 0:00:12]} Nf6 {[%emt 0:00:05]} 5. d3 {[%emt 0:00:06]} d6 {[%emt 0:00:06]} 6. O-O {[%emt 0:00:44]} a5 {[%emt 0:00:03]} 7. Re1 {[%emt 0:01:32]} O-O {[%emt 0:00:05]} 8. h3 {[%emt 0:01:07]} Ba7 {[%emt 0:00:04] The position is equal.} 9. Bb3 {[%emt 0:02:46]} Be6 {[%emt 0:00:35]} 10. Bc2 {[%emt 0:04:41]} Ne7 {[%emt 0:07:56]} 11. d4 {[%emt 0:07:16]} Ng6 {[%emt 0:00:05]} 12. Nbd2 {[%emt 0:04:52][%cal Bb1d2,Bd2f1,Bf1g3,Bg3f5][%mdl 32]} Nh5 {[%emt 0:05:10]} 13. Nf1 {[%emt 0:06:41]} Nhf4 {[%emt 0:00:10]} 14. Ng3 {[%emt 0:06:35]} f6 {[%emt 0:01:07]} 15. Be3 {[%emt 0:03:03]} Qd7 {[%emt 0:00:09][%cal Oe6h3] Hoping for ...Bxh3!} 16. Nf5 {[%emt 0:04:41]} c6 {[%emt 0:09:04]} (16... Kh8 $14) 17. Qd2 {[%emt 0:08:11]} (17. dxe5 $1 $16 dxe5 18. Qxd7 Bxd7 19. Red1) 17... d5 {[%emt 0:07:58] aiming for ...dxe4.} (17... Nd5 $5) 18. dxe5 {[%emt 0:07:58]} fxe5 {[%emt 0:00:14] ...dxe4 would now be deadly.} 19. Bxa7 {[%emt 0:05:02]} Rxa7 {[%emt 0:00:03]} 20. Rad1 {[%emt 0:05:14]} Raa8 {[%emt 0:03:19][%cal Re6f5]} 21. Ng5 $2 {[%emt 0:01:32][%mdl 8192] [#] Loses the game.} (21. Nxe5 $15 Nxh3+ 22. gxh3 Nxe5 23. Qf4) 21... Bxf5 $1 $19 {[%emt 0:00:05]} 22. exf5 {[%emt 0:00:08]} Rxf5 {[%emt 0:00:03]} 23. Bxf5 {[%emt 0:04:26]} Qxf5 {[%emt 0:00:11]} 24. Nf3 {[%emt 0:00:33] [#]} Nxh3+ {[%emt 0:05:17]} 25. Kf1 $2 {[%emt 0:05:59]} (25. gxh3 {was forced.} Qxf3 26. Qe3) 25... Nhf4 {[%emt 0:00:04]} 26. Nxe5 {[%emt 0:01:45]} (26. Nh2) 26... Nxe5 {[%emt 0:00:13] A dynamic duo of knights.} 27. Qe3 {[%emt 0:00:04]} Ned3 {[%emt 0:01:25] Weighted Error Value: White=0.87/Black=0.27 (precise) .  Loses game:     	White=1     	---        Mistake:       	White=3     	Black=2      Inaccurate:     	White=3     	Black=1      OK:         	White=6     	Black=4      Strong:       	---       	Black=1} 0-1

[Event "10th Iberoamericano-ch 2024"]
[Site "Linares"]
[Date "2024.10.01"]
[Round "9.10"]
[White "Jimenez Garcia, Emmanuel"]
[Black "Lopez Martinez, Josep Manuel"]
[Result "1/2-1/2"]
[Annotator "TA"]
[ECO "A46"]
[WhiteElo "2361"]
[BlackElo "2464"]
[PlyCount "139"]
[EventDate "2024.09.25"]
[EventType "swiss"]
[EventCountry "ESP"]
[SourceTitle "playchess.com"]
[Source "ChessBase"]
[SourceQuality "1"]
[TimeControl "5400+30"]

{[%evp 13,139,0,0,0,2,0,0,0,0,0,0,4,0,0,17,0,54,11,30,32,24,0,49,14,24,27,32,32,18,19,65,80,79,2,0,0,2,-41,0,0,0,0,0,0,0,0,8,10,2,0,0,0,0,0,0,0,0,0,0,0,0,0,0,0,0,0,0,0,0,0,0,0,0,0,0,0,44,45,44,0,0,0,36,39,36,29,39,51,54,0,0,0,0,0,0,0,10,8,58,35,71,4,4,0,37,0,80,0,8,14,19,0,28,0,0,0,0,0,0,0,0,0,0,0,0,0,0,0]} 1. d4 {[%emt 0:03:38]} Nf6 {[%emt 0:03:31]} 2. Nf3 {[%emt 0:00:07]} e6 {[%emt 0:00:35]} 3. g3 {[%emt 0:00:15]} c5 {[%emt 0:04:06]} 4. Bg2 {[%emt 0:00:13]} cxd4 {[%emt 0:01:57]} 5. O-O {[%emt 0:00:17]} d5 {[%emt 0:00:09]} 6. Nxd4 {[%emt 0:00:08]} e5 {[%emt 0:00:40]} 7. Nb3 {[%emt 0:00:02]} Be6 {[%emt 0:04:07]} 8. Bg5 {[%emt 0:02:29]} Nbd7 $1 {[%emt 0:00:29] [#]} 9. e4 $1 {[%emt 0:04:34]} dxe4 {[%emt 0:02:01]} 10. Nc3 {[%emt 0:03:01]} Qc7 {[%emt 0:00:36]} 11. Nxe4 {[%emt 0:11:17]} (11. Bxe4 Nxe4 12. Nxe4 h6 $17) 11... Nxe4 {[%emt 0:02:59]} 12. Bxe4 {[%emt 0:00:04]} h6 {[%emt 0:00:21]} 13. Bd2 {[%emt 0:04:24]} O-O-O {[%emt 0:09:05]} 14. Qf3 {[%emt 0:07:27]} g6 {[%emt 0:00:43] Inhibits Bf5.} (14... Nc5 $11) 15. Ba5 {[%emt 0:01:34]} b6 {[%emt 0:00:07]} 16. Bc3 {[%emt 0:00:02]} Bg7 {[%emt 0:04:16]} 17. Rfd1 {[%emt 0:07:01]} Kb8 {[%emt 0:00:17]} (17... f5 $11 {deserves consideration.} 18. Bd5 e4) 18. Bd5 $14 {[%emt 0:02:47] Strongly threatening Bxe6.} Nf8 {[%emt 0:00:09]} 19. a4 {[%emt 0:02:19] Threatens to win with a5.} Bxd5 $1 {[%emt 0:00:28]} 20. Rxd5 {[%emt 0:00:03]} Ne6 {[%emt 0:00:13]} 21. Rb5 {[%emt 0:19:55]} (21. Rad1 {simplifies} Rxd5 22. Rxd5 Rc8 23. Qe3) 21... Ng5 {[%emt 0:01:30]} (21... Rhe8 $1 $11 {feels stronger.}) 22. Qg2 $1 {[%emt 0:00:28]} Qb7 {[%emt 0:01:09]} 23. f4 {[%emt 0:08:08]} (23. Nc5 $16 {[%csl Gc5][%cal Rg2b7]} Nf3+ (23... bxc5 24. Qxb7#) 24. Kh1) 23... Nf3+ $11 {[%emt 0:01:46]} 24. Kf2 {[%emt 0:02:01]} Nd4 {[%emt 0:00:05]} (24... a6 $2 25. Na5 (25. Nc5 Qc6 $18) 25... Qc7 26. Qxf3 $18) 25. Qxb7+ {[%emt 0:00:31]} (25. Bxd4 {simplifies} exd4 26. Qxb7+ Kxb7 27. Rd1) 25... Kxb7 {[%emt 0:00:12][%cal Bb8b7,Bb7c6,Bc6c7][%mdl 32]} 26. Bxd4 {[%emt 0:00:09]} exd4 {[%emt 0:00:08]} 27. Re1 {[%emt 0:04:02]} Rhe8 {[%emt 0:00:19] Repels Re7+} 28. Nc5+ {[%emt 0:03:46]} Kc6 {[%emt 0:02:31]} 29. Nd3 {[%emt 0:00:20]} Rc8 {[%emt 0:01:19]} 30. Nb4+ {[%emt 0:00:29]} Kc7 {[%emt 0:00:49]} 31. a5 {[%emt 0:06:06]} Bf8 {[%emt 0:01:09]} 32. Rxe8 {[%emt 0:01:25]} Rxe8 {[%emt 0:00:14]} 33. axb6+ {[%emt 0:00:49]} axb6 {[%emt 0:00:03][%mdl 4096] Endgame. KRB-KRN} 34. Nd3 {[%emt 0:00:34]} Bd6 {[%emt 0:07:57] Against Re5} 35. Rb3 {[%emt 0:04:49]} Kc6 {[%emt 0:00:39]} 36. Nc1 {[%emt 0:00:51]} Ra8 {[%emt 0:07:09]} 37. Rd3 {[%emt 0:00:22][%cal Oc1b3]} Bc5 {[%emt 0:01:00]} 38. Ke2 {[%emt 0:00:52]} Ra1 {[%emt 0:00:14]} 39. Rd1 {[%emt 0:00:21]} Kd5 {[%emt 0:00:59]} 40. Nd3 {[%emt 0:00:29]} Ra8 {[%emt 0:00:34]} 41. Kd2 {[%emt 0:00:33]} Bd6 {[%emt 0:00:59]} 42. Re1 {[%emt 0:00:53]} f5 {[%emt 0:01:47]} 43. h4 {[%emt 0:00:25]} Rg8 {[%emt 0:00:43]} 44. Ne5 {[%emt 0:01:48]} g5 {[%emt 0:00:41]} 45. Nd7 {[%emt 0:00:29]} Kc6 {[%emt 0:02:06]} 46. Ne5+ {[%emt 0:00:28]} Kd5 {[%emt 0:04:31]} 47. Nd7 {[%emt 0:00:06]} Rd8 {[%emt 0:00:09]} 48. Nf6+ {[%emt 0:00:43]} (48. Nxb6+ Kc6 49. Nc4 Bb4+ (49... gxf4 $2 50. Nxd6 Kxd6 51. gxf4 $18) 50. c3 dxc3+ 51. Kc2 cxb2 $17) 48... Kc6 $1 {[%emt 0:00:22] aiming for ...Bb4+.} 49. Re6 {[%emt 0:00:42]} (49. fxg5 Bb4+ (49... Bxg3 $2 {perishes.} 50. Re6+ Kc7 51. Kd3 $18) 50. Kd1 Bxe1 51. Kxe1 hxg5 52. hxg5 Kd6 $19) 49... gxh4 {[%emt 0:00:11]} 50. gxh4 {[%emt 0:00:02]} Kb5 {[%emt 0:00:49]} 51. Kd3 {[%emt 0:00:18]} (51. Nh5 $1 $14 d3 52. cxd3 (52. Rxh6 dxc2 53. Kxc2 Ka4 $14)) 51... Bxf4 {[%emt 0:00:12]} 52. Nh5 {[%emt 0:00:41]} Bc1 {[%emt 0:00:26]} 53. Ng3 {[%emt 0:01:09]} f4 {[%emt 0:02:14]} 54. Ne2 {[%emt 0:00:09]} Be3 {[%emt 0:00:05] ...f3 is the strong threat.} 55. Rf6 {[%emt 0:00:30]} Kc5 {[%emt 0:10:01]} (55... Rd5 $11) 56. Nxf4 $14 {[%emt 0:00:13]} Bxf4 {[%emt 0:00:54] [#]} 57. Rxf4 {[%emt 0:00:04] KR-KR} (57. Rf5+ $1 $16 Rd5 58. Rxf4) 57... Rd5 $1 $11 {[%emt 0:00:09]} 58. b3 {[%emt 0:01:09]} h5 {[%emt 0:00:32]} 59. Rf8 {[%emt 0:00:46]} Kb5 {[%emt 0:00:47]} (59... Kb4 $11) 60. Rg8 {[%emt 0:00:29]} ({White should try} 60. Ra8 $16) 60... Kb4 $1 {[%emt 0:00:48]} 61. Rg6 {[%emt 0:00:31]} Kc5 $1 {[%emt 0:02:26]} 62. Rg8 {[%emt 0:00:35]} Rf5 {[%emt 0:02:29] Against Rf8} 63. Rg5 {[%emt 0:00:32]} Rxg5 {[%emt 0:00:22] The position is equal.} 64. hxg5 {[%emt 0:00:02][%cal Bh4g5,Bg5g6][%mdl 32] K3P-K3P} Kd5 {[%emt 0:00:07]} 65. g6 {[%emt 0:00:14]} Ke6 {[%emt 0:00:04] And now ...h4 would win.} 66. Kxd4 {[%emt 0:00:11]} (66. g7 $5 Kf7 $8 67. Kxd4 $11) 66... Kf6 {[%emt 0:00:21]} 67. c4 {[%emt 0:00:19]} h4 {[%emt 0:00:04][%cal Oh4h3]} 68. Ke4 {[%emt 0:00:08]} h3 {[%emt 0:00:07][%cal Oh3h2] ( -> ...h2!)} 69. Kf3 {[%emt 0:00:04] Threatening mate with b4.} Kxg6 {[%emt 0:00:05]} (69... h2 $5 70. Kg2 $8 Kxg6 $11) 70. b4 {[%emt 0:00:51] Weighted Error Value: White=0.12 (very precise) /Black=0.12 (very precise) .  Mistake:       	White=4     	Black=5      Inaccurate:     	White=4     	Black=6      OK:         	White=30    	Black=19     Best:        	White=2     	Black=8      Strong:       	White=1     	Black=6} 1/2-1/2

[Event "10th Iberoamericano-ch 2024"]
[Site "Linares"]
[Date "2024.10.01"]
[Round "9.11"]
[White "Merario Alarcon, Andres"]
[Black "Noboa Silva, Kevin"]
[Result "0-1"]
[Annotator "RC"]
[ECO "C10"]
[WhiteElo "2408"]
[BlackElo "2382"]
[PlyCount "146"]
[EventDate "2024.09.25"]
[EventType "swiss"]
[EventCountry "ESP"]
[SourceTitle "playchess.com"]
[Source "ChessBase"]
[SourceQuality "1"]
[TimeControl "5400+30"]

1. e4 {[%emt 0:00:03]} e6 {[%emt 0:02:02]} 2. d4 {[%emt 0:00:13]} d5 {[%emt 0:00:35]} 3. Nc3 {[%emt 0:00:33]} dxe4 {[%emt 0:00:10]} 4. Nxe4 {[%emt 0:00:12]} Nd7 {[%emt 0:00:07]} 5. Nf3 {[%emt 0:00:55]} Ngf6 {[%emt 0:00:14]} 6. Nxf6+ {[%emt 0:00:08]} Nxf6 {[%emt 0:00:17]} 7. Be3 {[%emt 0:00:09]} Bd7 {[%emt 0:04:43]} 8. Ne5 {[%emt 0:01:12]} Ba4 {[%emt 0:00:45]} 9. a3 {[%emt 0:02:47]} Nd7 {[%emt 0:01:12]} 10. b3 {[%emt 0:00:06]} Nxe5 {[%emt 0:00:38]} 11. bxa4 {[%emt 0:00:06]} Ng6 {[%emt 0:02:05]} 12. Bd3 {[%emt 0:13:04]} Bd6 {[%emt 0:02:45]} 13. Qf3 {[%emt 0:21:26]} c6 {[%emt 0:03:31]} 14. h4 {[%emt 0:00:12]} Nxh4 {[%emt 0:05:41]} 15. Qg4 {[%emt 0:02:34]} Nf5 {[%emt 0:00:15]} 16. Bd2 {[%emt 0:07:17]} Qf6 {[%emt 0:17:28]} 17. c3 {[%emt 0:02:23]} O-O-O {[%emt 0:05:05]} 18. Qf3 {[%emt 0:06:48]} Bc7 {[%emt 0:17:34]} 19. g4 {[%emt 0:05:50]} Ne7 {[%emt 0:01:09]} 20. Qxf6 {[%emt 0:00:45]} gxf6 {[%emt 0:00:02]} 21. Ke2 {[%emt 0:02:29]} Ng6 {[%emt 0:02:11]} 22. Rh6 {[%emt 0:01:32]} c5 {[%emt 0:01:40]} 23. Be3 {[%emt 0:07:18]} cxd4 {[%emt 0:02:15]} 24. cxd4 {[%emt 0:01:41]} Bb6 {[%emt 0:04:12]} 25. Be4 {[%emt 0:06:33]} Bxd4 {[%emt 0:04:07]} 26. Rc1+ {[%emt 0:03:03]} Kb8 {[%emt 0:00:21]} 27. Rb1 {[%emt 0:00:53]} b6 {[%emt 0:00:32]} 28. Rbh1 {[%emt 0:02:52]} Bxe3 {[%emt 0:01:28]} 29. fxe3 {[%emt 0:00:34]} Rd6 {[%emt 0:03:51]} 30. Bxg6 {[%emt 0:02:22]} fxg6 {[%emt 0:00:06]} 31. Rxg6 {[%emt 0:03:06]} hxg6 {[%emt 0:01:00]} 32. Rxh8+ {[%emt 0:00:01]} Kb7 {[%emt 0:00:23]} 33. Rf8 {[%emt 0:00:18]} e5 {[%emt 0:00:26]} 34. Rf7+ {[%emt 0:00:29]} Ka6 {[%emt 0:00:33]} 35. Kf3 {[%emt 0:02:23]} Rc6 {[%emt 0:01:02]} 36. Rg7 {[%emt 0:03:47]} f5 {[%emt 0:01:07]} 37. g5 {[%emt 0:02:21]} Rc3 {[%emt 0:05:08]} 38. Re7 {[%emt 0:00:32]} f4 {[%emt 0:07:14]} 39. Rxe5 {[%emt 0:00:01]} fxe3 {[%emt 0:00:52]} 40. a5 {[%emt 0:01:00]} Rc5 {[%emt 0:01:22]} 41. Rxe3 {[%emt 0:00:28]} Rxa5 {[%emt 0:00:11]} 42. Kf4 {[%emt 0:00:16]} Rf5+ {[%emt 0:00:48]} 43. Kg4 {[%emt 0:00:05]} Rc5 {[%emt 0:00:57]} 44. Re6 {[%emt 0:00:48]} Rc4+ {[%emt 0:00:14]} 45. Kf3 {[%emt 0:00:10]} Ra4 {[%emt 0:00:20]} 46. Rxg6 {[%emt 0:00:32]} Rxa3+ {[%emt 0:00:04]} 47. Kf4 {[%emt 0:00:22]} Ra1 {[%emt 0:00:57]} 48. Rd6 {[%emt 0:01:19]} Rg1 {[%emt 0:00:30]} 49. g6 {[%emt 0:00:21]} Kb7 {[%emt 0:01:00]} 50. Ke4 {[%emt 0:00:40]} a5 {[%emt 0:00:20]} 51. Kd4 {[%emt 0:00:25]} a4 {[%emt 0:00:49]} 52. Kc3 {[%emt 0:00:15]} Ka6 {[%emt 0:00:35]} 53. Kb4 {[%emt 0:00:28]} Rg4+ {[%emt 0:00:08]} 54. Ka3 {[%emt 0:00:11]} Ka5 {[%emt 0:00:10]} 55. Re6 {[%emt 0:01:10]} Rg3+ {[%emt 0:00:08]} 56. Ka2 {[%emt 0:00:05]} b5 {[%emt 0:00:12]} 57. Rf6 {[%emt 0:00:15]} Rg2+ {[%emt 0:00:07]} 58. Ka1 {[%emt 0:00:13]} Rg4 {[%emt 0:01:04]} 59. Ka2 {[%emt 0:00:32]} Kb4 {[%emt 0:00:05]} 60. Re6 {[%emt 0:00:19]} Rg2+ {[%emt 0:01:05]} 61. Ka1 {[%emt 0:00:05]} Kc4 {[%emt 0:01:20]} 62. Rf6 {[%emt 0:00:42]} Rg4 {[%emt 0:00:10]} 63. Re6 {[%emt 0:01:35]} b4 {[%emt 0:00:38]} 64. Rf6 {[%emt 0:00:42]} b3 {[%emt 0:00:47]} 65. Kb2 {[%emt 0:00:29]} Rg2+ {[%emt 0:00:16]} 66. Kb1 {[%emt 0:00:07]} a3 {[%emt 0:00:21]} 67. Rf4+ {[%emt 0:00:41]} Kd5 {[%emt 0:00:30]} 68. Rf5+ {[%emt 0:00:16]} Ke4 {[%emt 0:00:16]} 69. Rf1 {[%emt 0:00:13]} Rxg6 {[%emt 0:00:17]} 70. Rd1 {[%emt 0:00:11]} Rg2 {[%emt 0:00:17]} 71. Ka1 {[%emt 0:00:17]} Ke3 {[%emt 0:00:28]} 72. Rh1 {[%emt 0:00:19]} Kf2 {[%emt 0:01:07]} 73. Rb1 {[%emt 0:00:24]} Rg1 {[%emt 0:00:13]} 0-1